bitfinex/quotes_SOLUSD_20240705
["timestamp","ask_amount","ask_price","bid_price","bid_amount"]
[1720154969490,9.76534502,126.12,125.99,20.0]
[1720154969691,1.83634502,126.12,125.99,20.0]
[1720154969910,9.76574502,126.12,125.99,20.0]
[1720154970120,1.83634502,126.12,125.97,50.05]
[1720154970324,1.83634502,126.12,125.98,20.17]
[1720154971624,100.0,126.18,125.98,20.17]
[1720154971789,7.9277,126.14,125.98,20.17]
[1720154971989,1.83634502,126.17,125.98,20.17]
[1720154972297,1.83634502,126.17,126.01,50.05]
[1720154972597,1.83634502,126.17,126.02,20.17]
[1720154972998,0.1,126.19,126.02,20.17]
[1720154973811,7.9252,126.18,126.02,20.17]
[1720154975194,0.17,126.17,126.02,20.17]
[1720154975614,8.0952,126.18,126.02,20.17]
[1720154975820,0.17,126.18,126.02,20.17]
[1720154976124,0.27,126.19,126.02,20.17]
[1720154976421,0.27,126.19,126.02,35.17]
[1720154976990,0.1,126.19,126.02,35.17]
[1720154977595,0.1,126.19,126.06,50.05]
[1720154977795,0.1,126.19,126.07,18.91230573]
[1720154978999,0.1,126.19,126.08,15.5746]
[1720154979846,0.1,126.19,126.09,0.17]
[1720154980136,0.1,126.19,126.09,20.0]
[1720154980305,2.00634502,126.18,126.09,20.0]
[1720154980624,1.82910285,126.17,126.09,20.0]
[1720154981404,0.17,126.16,126.09,19.85036239]
[1720154981605,0.17,126.16,126.08,15.5746]
[1720154982128,1.82910303,126.15,126.08,15.5746]
[1720154982335,0.17,126.14,126.08,15.5746]
[1720154982505,1.82910321,126.13,126.08,15.5746]
[1720154985131,0.1,126.19,126.08,15.5746]
[1720154985340,0.1,126.19,126.09,20.0]
[1720154985706,0.1,126.19,126.08,45.53828944]
[1720154986012,0.1,126.19,126.09,20.17]
[1720154986204,0.1,126.19,126.1,6.4263]
[1720154986601,0.1,126.19,126.1,45.1563]
[1720154986799,0.8485584,126.22,126.12,50.05]
[1720154987942,0.8485584,126.22,126.13,20.0]
[1720154988444,0.8485584,126.22,126.1,6.4263]
[1720154988612,0.8485584,126.22,126.11,20.0]
[1720154988808,0.17,126.21,126.11,36.365]
[1720154989712,0.17,126.21,126.12,0.17]
[1720154989912,0.17,126.21,126.11,36.365]
[1720154991213,0.8485584,126.22,126.11,36.365]
[1720154991544,0.8485584,126.22,126.12,0.17]
[1720154992428,0.8485584,126.22,126.11,16.365]
[1720154992628,8.7715584,126.22,126.11,16.365]
[1720154992840,0.17,126.21,126.11,16.365]
[1720154993542,0.8485584,126.22,126.11,16.365]
[1720154994435,0.8485584,126.22,126.12,0.17]
[1720154994639,0.3955584,126.22,126.12,20.17]
[1720154996522,0.3955584,126.22,126.14,50.05]
[1720154996824,0.3955584,126.22,126.15,20.17]
[1720154997231,0.3955584,126.22,126.16,6.3542]
[1720154997558,0.3955584,126.22,126.17,20.17]
[1720154998843,0.3955584,126.22,126.18,16.3211]
[1720154999019,0.3955584,126.22,126.19,20.0]
[1720154999220,0.3955584,126.22,126.18,16.3211]
[1720155000056,0.3955584,126.22,126.16,6.3542]
[1720155001218,0.3955584,126.22,126.14,16.3435]
[1720155001219,0.3955584,126.22,126.15,5.82590187]
[1720155001549,0.3955584,126.22,126.11,6.607]
[1720155001550,0.17,126.21,126.11,6.607]
[1720155001934,0.17,126.21,126.11,12.56528162]
[1720155002244,0.3955584,126.22,126.11,12.56528162]
[1720155002547,0.17,126.21,126.11,12.56528162]
[1720155003056,0.3955584,126.22,126.11,12.56528162]
[1720155003519,0.3955584,126.22,126.12,20.0]
[1720155004251,0.3955584,126.22,126.13,0.17]
[1720155005640,0.3955584,126.22,126.14,50.05]
[1720155005844,0.3955584,126.22,126.15,20.17]
[1720155006018,0.3955584,126.22,126.16,16.2252]
[1720155006234,0.3955584,126.22,126.17,20.17]
[1720155006925,0.8485584,126.34,126.19,6.5583]
[1720155007130,8.7638584,126.34,126.2,20.17]
[1720155007862,0.8485584,126.34,126.22,73.89]
[1720155008152,0.8485584,126.34,126.23,20.17]
[1720155008866,0.8485584,126.34,126.23,0.17]
[1720155009151,0.8485584,126.34,126.25,50.05]
[1720155009318,0.8485584,126.34,126.26,20.17]
[1720155010165,0.8485584,126.34,126.26,44.01]
[1720155010327,0.8485584,126.34,126.26,20.17]
[1720155010527,0.8485584,126.34,126.27,6.0477]
[1720155010735,0.8485584,126.34,126.28,20.17]
[1720155011241,0.8485584,126.34,126.29,50.05]
[1720155011435,0.8485584,126.34,126.3,20.17]
[1720155014757,0.8485584,126.34,126.27,6.0477]
[1720155015066,0.8485584,126.34,126.21,6.5809]
[1720155015557,7.2195584,126.34,126.21,12.52291442]
[1720155015769,0.17,126.33,126.21,12.52291442]
[1720155015949,0.17,126.33,126.17,15.0]
[1720155015950,7.9177,126.3,126.17,15.0]
[1720155016258,0.17,126.33,126.17,5.9324539]
[1720155016470,171.67874502,126.32,126.12,50.05]
[1720155016646,7.9208,126.25,126.12,50.05]
[1720155016830,8.0914,126.24,126.13,5.98310261]
[1720155017339,6.2458,126.23,126.1,8.20674291]
[1720155017531,0.17,126.22,126.1,6.10763886]
[1720155017728,0.17,126.22,126.08,8.20940264]
[1720155017955,6.2458,126.23,126.1,50.05]
[1720155018965,0.17,126.22,126.1,50.05]
[1720155019843,6.2458,126.23,126.1,50.05]
[1720155020048,15.9372,126.28,126.11,43.84]
[1720155020049,22.0825,126.28,126.11,43.84]
[1720155020645,22.0825,126.28,126.14,50.05]
[1720155020844,22.0825,126.28,126.15,20.17]
[1720155021049,22.0825,126.28,126.15,44.01]
[1720155021833,22.0825,126.28,126.15,20.17]
[1720155023169,7.9197,126.27,126.15,20.17]
[1720155023366,8.0901,126.27,126.12,50.05]
[1720155023534,8.0896,126.27,126.12,50.05]
[1720155024444,0.17,126.27,126.12,50.05]
[1720155024961,0.17,126.27,126.13,0.17]
[1720155025280,8.0898,126.27,126.12,50.05]
[1720155025457,0.17,126.27,126.12,73.89]
[1720155025930,0.17,126.27,126.13,43.84]
[1720155026135,22.0825,126.28,126.13,43.84]
[1720155026356,22.0825,126.28,126.14,0.17]
[1720155026873,22.0825,126.28,126.14,39.01]
[1720155027032,22.0825,126.28,126.15,43.84]
[1720155027234,22.0825,126.28,126.17,73.89]
[1720155027451,21.8118,126.33,126.18,20.17]
[1720155028178,21.8118,126.33,126.14,20.0]
[1720155028374,21.8118,126.33,126.13,50.05]
[1720155028375,6.4803,126.32,126.13,50.05]
[1720155028587,35.0221,126.31,126.13,50.05]
[1720155028756,0.17,126.3,126.13,50.05]
[1720155028946,7.9193,126.28,126.13,50.05]
[1720155029152,0.17,126.27,126.13,50.05]
[1720155029770,0.17,126.27,126.14,0.17]
[1720155029967,15.2287,126.31,126.14,0.17]
[1720155030167,15.2287,126.31,126.14,44.01]
[1720155030373,23.1458,126.31,126.14,44.01]
[1720155031187,7.9177,126.3,126.14,44.01]
[1720155031479,0.17,126.29,126.14,44.01]
[1720155031689,8.0878,126.3,126.14,20.17]
[1720155032153,0.17,126.3,126.14,20.17]
[1720155032353,0.17,126.3,126.14,44.01]
[1720155032586,0.17,126.3,126.14,59.01]
[1720155033357,8.0878,126.3,126.14,59.01]
[1720155033765,0.17,126.3,126.14,59.01]
[1720155034874,0.17,126.3,126.14,20.17]
[1720155035183,0.17,126.3,126.13,50.05]
[1720155035364,0.17,126.3,126.11,12.18968176]
[1720155035365,110.70636315,126.29,126.11,12.18968176]
[1720155035566,7.9219,126.24,126.11,6.07598176]
[1720155035780,0.17,126.23,126.08,8.22349094]
[1720155035995,6.0173,126.21,126.08,8.22349094]
[1720155036286,0.17,126.2,126.08,8.22349094]
[1720155036590,7.9246,126.19,126.06,50.05]
[1720155036790,0.17,126.18,126.06,56.10112982]
[1720155037357,0.17,126.19,126.06,56.10112982]
[1720155037563,0.17,126.2,126.06,56.10112982]
[1720155037764,0.17,126.2,126.06,6.05112982]
[1720155037964,7.9246,126.19,126.02,30.3312]
[1720155038161,0.17,126.18,126.04,58.27554275]
[1720155038384,8.094,126.2,126.04,58.27554275]
[1720155038573,0.17,126.2,126.04,58.27554275]
[1720155039490,0.17,126.2,126.05,20.17]
[1720155039695,6.0173,126.21,126.08,50.05]
[1720155039895,6.0173,126.21,126.09,20.17]
[1720155040675,6.0173,126.21,126.09,44.01]
[1720155040880,6.0173,126.21,126.09,20.17]
[1720155041995,0.17,126.2,126.09,0.17]
[1720155042292,0.17,126.2,126.05,50.05]
[1720155043094,7.9245,126.19,126.05,50.05]
[1720155043300,0.17,126.18,126.05,50.05]
[1720155044003,8.0956,126.18,126.06,20.0]
[1720155044207,7.9259,126.17,126.02,12.62570698]
[1720155044499,0.17,126.16,126.02,20.85389781]
[1720155044965,0.17,126.17,126.02,20.85389781]
[1720155046499,0.17,126.17,126.03,20.17]
[1720155046795,8.0958,126.17,126.03,20.17]
[1720155047006,6.0747,126.15,126.03,20.0]
[1720155047172,0.17,126.14,126.02,6.13450698]
[1720155047372,8.0981,126.14,126.01,0.1]
[1720155047586,7.9285,126.13,126.01,0.1]
[1720155047789,0.17,126.12,126.01,0.1]
[1720155048001,7.9296,126.11,126.01,0.1]
[1720155048198,0.17,126.1,126.01,0.1]
[1720155048369,0.17,126.12,126.01,0.1]
[1720155048574,16.0216,126.1,126.01,0.1]
[1720155048784,6.442,126.08,126.01,0.1]
[1720155048972,0.17,126.07,126.01,0.1]
[1720155049169,6.442,126.08,126.01,0.1]
[1720155049585,0.17,126.07,126.01,0.1]
[1720155050911,6.442,126.08,126.01,0.1]
[1720155052312,0.17,126.07,126.01,0.1]
[1720155052690,6.442,126.08,126.01,0.1]
[1720155054818,6.442,126.08,126.01,20.27]
[1720155055113,6.442,126.08,126.01,20.1]
[1720155055487,6.442,126.08,126.01,0.1]
[1720155056592,6.442,126.08,126.01,0.27]
[1720155057186,6.442,126.08,126.01,20.27]
[1720155059501,6.1777,126.14,126.01,94.16]
[1720155060187,6.1777,126.14,126.01,109.16]
[1720155060391,6.1777,126.14,126.01,156.89]
[1720155060585,6.1777,126.14,126.01,141.89]
[1720155060901,6.1777,126.14,126.01,50.15]
[1720155061107,7.9305,126.1,126.01,0.1]
[1720155061304,6.1777,126.14,126.01,0.1]
[1720155061842,6.5757,126.12,126.01,0.1]
[1720155062118,16.2505,126.11,126.01,0.1]
[1720155062317,7.9308,126.1,126.01,0.1]
[1720155062700,7.9309,126.09,126.01,0.1]
[1720155062897,0.17,126.08,126.01,0.1]
[1720155063313,7.9345,126.04,125.93,8.22697649]
[1720155063525,7.9345,126.04,125.91,0.1]
[1720155063689,0.17,126.03,125.91,0.1]
[1720155064096,7.9364,126.01,125.91,0.1]
[1720155064428,6.5757,126.02,125.91,0.1]
[1720155064429,0.17,126.0,125.91,0.1]
[1720155064604,6.5757,126.02,125.91,0.1]
[1720155064806,6.5757,126.02,125.94,7.9402]
[1720155065115,6.5757,126.02,125.91,0.1]
[1720155065302,6.5757,126.02,125.97,7.9383]
[1720155065504,22.8262,126.06,125.97,7.9383]
[1720155065720,22.8262,126.06,125.94,136.58]
[1720155065929,22.8262,126.1,125.98,50.01]
[1720155066108,22.8262,126.1,125.99,20.17]
[1720155067524,7.9313,126.09,125.99,20.0]
[1720155067730,7.9313,126.09,125.95,20.0]
[1720155068230,22.8262,126.1,125.96,23.84]
[1720155068435,22.8262,126.1,125.97,20.0]
[1720155068621,22.8262,126.1,125.98,7.9372]
[1720155068939,22.8262,126.1,126.02,7.9351]
[1720155069111,22.8262,126.1,126.03,20.0]
[1720155069312,22.8262,126.1,126.04,0.17]
[1720155069717,22.8262,126.1,126.03,0.17]
[1720155070852,22.8262,126.1,126.02,20.0]
[1720155071731,22.8262,126.1,126.03,0.17]
[1720155071927,21.5754,126.18,126.03,0.17]
[1720155072937,21.5754,126.18,126.05,50.01]
[1720155073140,21.5754,126.18,126.09,50.01]
[1720155073346,21.5754,126.18,126.1,20.17]
[1720155073731,21.5754,126.24,126.13,50.01]
[1720155074047,21.5754,126.24,126.14,44.01]
[1720155074612,21.5754,126.24,126.17,50.01]
[1720155074817,21.5754,126.24,126.18,20.17]
[1720155075438,21.5754,126.28,126.18,20.17]
[1720155075832,0.1,126.29,126.21,50.01]
[1720155076027,0.1,126.29,126.22,20.17]
[1720155077360,0.1,126.29,126.22,20.0]
[1720155077532,0.1,126.29,126.18,20.0]
[1720155077840,0.1,126.29,126.19,0.17]
[1720155078238,0.1,126.29,126.24,50.01]
[1720155078435,0.1,126.29,126.25,20.17]
[1720155079320,0.1,126.29,126.18,47.73]
[1720155079321,0.1,126.29,126.18,15.0]
[1720155079522,0.1,126.29,126.19,20.0]
[1720155079923,0.1,126.29,126.18,50.01]
[1720155080130,0.1,126.29,126.17,6.03337338]
[1720155080131,6.2734,126.28,126.17,6.03337338]
[1720155080420,6.2734,126.28,126.12,50.01]
[1720155080621,0.17,126.27,126.12,50.01]
[1720155081051,8.0895,126.27,126.12,55.98040098]
[1720155081425,7.921,126.25,126.09,6.6231]
[1720155081632,0.17,126.24,126.06,170.707]
[1720155081928,0.17,126.24,126.1,50.01]
[1720155082450,7.9214,126.24,126.1,50.01]
[1720155082649,14.1843,126.23,126.06,56.08622571]
[1720155082945,0.17,126.22,126.06,56.08622571]
[1720155083521,21.4265,126.21,126.06,56.08622571]
[1720155083745,21.4265,126.21,126.0,50.01]
[1720155083746,7.9257,126.18,126.0,50.01]
[1720155084041,0.17,126.2,126.0,50.01]
[1720155084042,0.17,126.17,126.0,50.01]
[1720155084246,0.17,126.2,126.0,100.02]
[1720155084440,8.0941,126.2,126.0,106.06860923]
[1720155084837,0.17,126.2,126.04,50.01]
[1720155085641,0.17,126.2,126.05,20.0]
[1720155085947,21.4265,126.21,126.05,43.84]
[1720155086135,21.4265,126.21,126.08,73.85]
[1720155086328,21.4265,126.21,126.09,44.01]
[1720155086727,21.4265,126.21,126.09,20.17]
[1720155086946,21.4265,126.21,126.09,44.01]
[1720155087552,21.4265,126.21,126.12,50.01]
[1720155087744,21.4265,126.21,126.13,20.17]
[1720155089050,6.5374,126.26,126.13,44.01]
[1720155089269,6.5374,126.26,126.16,50.01]
[1720155089569,6.5374,126.26,126.17,20.17]
[1720155090139,6.5374,126.26,126.16,50.01]
[1720155090338,7.9208,126.25,126.12,6.12478774]
[1720155090551,7.9208,126.25,126.1,7.957]
[1720155090751,7.9214,126.24,126.07,7.957]
[1720155091155,0.17,126.23,126.07,7.957]
[1720155091361,6.5622,126.22,126.07,7.957]
[1720155091562,6.5622,126.22,126.07,31.797]
[1720155091988,6.5622,126.22,126.1,73.85]
[1720155092176,22.6237,126.27,126.14,50.01]
[1720155092670,22.6237,126.27,126.14,73.85]
[1720155093046,22.6237,126.27,126.15,20.17]
[1720155094178,0.17,126.26,126.15,20.17]
[1720155094551,0.17,126.26,126.16,20.0]
[1720155094754,0.17,126.26,126.15,0.17]
[1720155096147,22.6237,126.27,126.15,0.17]
[1720155097275,22.6237,126.27,126.16,73.85]
[1720155097586,22.6237,126.27,126.17,44.01]
[1720155098185,22.6237,126.27,126.2,50.01]
[1720155098486,0.1,126.29,126.22,23.84]
[1720155098651,6.6457,126.31,126.23,44.01]
[1720155098853,6.6457,126.31,126.24,50.18]
[1720155099048,6.6457,126.31,126.25,20.0]
[1720155099276,6.6457,126.31,126.26,0.17]
[1720155099443,6.6457,126.37,126.28,50.01]
[1720155099644,6.6457,126.37,126.29,20.17]
[1720155100980,6.6457,126.37,126.25,20.0]
[1720155101176,0.17,126.36,126.26,0.17]
[1720155101673,0.17,126.36,126.21,7.957]
[1720155101859,8.0841,126.36,126.21,7.957]
[1720155102383,14.3469,126.32,126.16,50.01]
[1720155102685,6.4303,126.28,126.13,6.13102656]
[1720155102851,6.4303,126.26,126.1,73.85]
[1720155103877,8.0909,126.25,126.1,50.01]
[1720155104187,8.0908,126.25,126.09,5.89405828]
[1720155104553,8.0908,126.25,126.07,22.957]
[1720155104748,6.4303,126.26,126.14,50.01]
[1720155105061,6.4303,126.26,126.15,23.84]
[1720155105266,6.4303,126.26,126.16,43.84]
[1720155105775,6.4303,126.26,126.16,20.0]
[1720155106078,6.4303,126.26,126.17,0.17]
[1720155106384,6.4303,126.26,126.16,0.17]
[1720155107380,16.314,126.29,126.18,100.02]
[1720155107581,16.314,126.29,126.19,20.17]
[1720155107948,16.314,126.29,126.2,23.84]
[1720155108164,16.314,126.29,126.22,50.01]
[1720155108366,6.1543,126.31,126.23,20.17]
[1720155109852,6.1543,126.31,126.23,20.0]
[1720155110363,6.1543,126.31,126.19,20.0]
[1720155111380,6.1543,126.31,126.2,0.17]
[1720155112055,6.1543,126.31,126.2,39.01]
[1720155112287,6.1543,126.31,126.21,43.84]
[1720155112493,6.1543,126.31,126.22,0.17]
[1720155112986,6.1543,126.31,126.23,23.84]
[1720155113175,6.1543,126.31,126.24,20.17]
[1720155113488,15.0506,126.34,126.25,50.01]
[1720155113793,15.0506,126.34,126.26,20.17]
[1720155114658,15.0506,126.34,126.26,0.17]
[1720155114985,15.0506,126.34,126.25,0.17]
[1720155117693,15.0506,126.34,126.27,50.01]
[1720155117896,15.0506,126.34,126.28,20.17]
[1720155118593,0.3041448,126.39,126.29,71.57]
[1720155118794,6.6556,126.47,126.38,50.01]
[1720155118994,6.6556,126.47,126.36,73.85]
[1720155118995,6.6556,126.47,126.43,50.01]
[1720155119296,1e-08,126.47,126.44,20.17]
[1720155120292,1e-08,126.47,126.44,20.0]
[1720155120671,1e-08,126.47,126.45,0.17]
[1720155121261,1e-08,126.47,126.44,20.0]
[1720155122194,6.3464,126.46,126.38,5.89936927]
[1720155122404,6.3464,126.46,126.4,50.01]
[1720155122568,6.3464,126.46,126.41,20.0]
[1720155123005,1e-08,126.47,126.41,20.0]
[1720155123592,1e-08,126.47,126.42,0.17]
[1720155123802,1e-08,126.47,126.44,50.01]
[1720155124100,0.1,126.49,126.45,20.17]
[1720155124303,22.5423,126.54,126.45,20.17]
[1720155125201,104.84133819,126.64,126.53,100.02]
[1720155125404,104.84133819,126.64,126.58,50.01]
[1720155125699,104.84133819,126.64,126.59,20.17]
[1720155127394,104.84133819,126.64,126.62,50.01]
[1720155127580,104.84133819,126.64,126.63,0.17]
[1720155128496,104.84133819,126.64,126.63,20.17]
[1720155128783,0.1,126.69,126.63,20.17]
[1720155129688,0.8485584,126.71,126.66,50.01]
[1720155130012,0.0469392,126.74,126.67,20.17]
[1720155130178,0.0469392,126.74,126.6,50.01]
[1720155130374,0.0469392,126.74,126.55,5.87686734]
[1720155130375,7.894,126.68,126.55,5.87686734]
[1720155130600,6.4812,126.69,126.53,50.01]
[1720155130805,7.8941,126.68,126.48,100.02]
[1720155130990,121.4812,126.69,126.48,106.01838287]
[1720155131180,7.8958,126.65,126.48,50.01]
[1720155131502,121.4812,126.69,126.48,50.01]
[1720155131503,0.17,126.64,126.48,50.01]
[1720155131686,0.17,126.64,126.52,50.01]
[1720155131892,21.5977,126.63,126.44,0.587792]
[1720155132092,0.17,126.62,126.46,50.01]
[1720155132279,0.17,126.62,126.44,0.587792]
[1720155132480,50.01,126.6,126.44,0.587792]
[1720155132703,15.3859,126.55,126.44,0.587792]
[1720155132914,0.17,126.54,126.44,0.587792]
[1720155133599,0.17,126.54,126.41,0.1]
[1720155134718,7.9033,126.53,126.41,0.1]
[1720155134925,0.17,126.52,126.41,0.1]
[1720155135507,6.4786,126.51,126.41,0.1]
[1720155135732,0.17,126.5,126.41,0.1]
[1720155136091,0.17,126.5,126.39,0.20208065]
[1720155136594,8.0751,126.5,126.39,0.20208065]
[1720155136795,0.17,126.5,126.41,0.20208065]
[1720155137004,0.17,126.5,126.38,0.20208065]
[1720155138293,6.4786,126.51,126.4,0.20208065]
[1720155138490,6.4786,126.51,126.41,0.17]
[1720155138695,6.4786,126.51,126.42,0.20208065]
[1720155138895,6.4786,126.51,126.43,0.17]
[1720155139126,6.4786,126.51,126.41,0.17]
[1720155140212,6.4786,126.51,126.42,0.20208065]
[1720155140401,6.4786,126.51,126.43,0.17]
[1720155140799,6.4786,126.51,126.39,0.20208065]
[1720155141032,6.4786,126.51,126.41,0.20208065]
[1720155141606,0.17,126.5,126.41,0.20208065]
[1720155141924,0.17,126.5,126.38,26.05026312]
[1720155141925,0.17,126.5,126.39,0.20208065]
[1720155142427,7.9057,126.49,126.39,0.20208065]
[1720155142731,0.17,126.48,126.37,0.20208065]
[1720155142924,8.0768,126.48,126.37,0.20208065]
[1720155143612,8.0768,126.48,126.32,8.27235859]
[1720155143613,6.3059,126.46,126.32,8.27235859]
[1720155143809,0.17,126.45,126.31,0.1]
[1720155144013,0.17,126.45,126.33,0.20208065]
[1720155144220,0.17,126.45,126.37,0.20208065]
[1720155144564,6.3059,126.46,126.39,0.20208065]
[1720155144708,6.3059,126.46,126.37,0.20208065]
[1720155144913,6.3059,126.46,126.39,0.20208065]
[1720155145117,16.5636,126.47,126.42,0.20208065]
[1720155145423,16.6449,126.53,126.47,0.20208065]
[1720155145801,16.6449,126.53,126.43,20.20208065]
[1720155146009,16.6449,126.53,126.45,0.20208065]
[1720155146907,16.6449,126.53,126.4,0.20208065]
[1720155147121,16.6449,126.53,126.42,0.20208065]
[1720155148420,16.6449,126.53,126.44,0.20208065]
[1720155148716,0.17,126.52,126.42,0.20208065]
[1720155148914,0.17,126.52,126.41,0.17]
[1720155149119,6.5165,126.51,126.4,0.20208065]
[1720155149428,8.0757,126.5,126.4,0.20208065]
[1720155149726,0.17,126.5,126.4,0.20208065]
[1720155150726,0.17,126.5,126.34,50.01]
[1720155150727,0.17,126.5,126.38,0.20208065]
[1720155151110,0.17,126.5,126.33,0.20208065]
[1720155151111,7.9096,126.43,126.33,0.20208065]
[1720155151408,0.17,126.42,126.31,0.30208065]
[1720155151610,6.432,126.41,126.31,0.30208065]
[1720155151922,0.17,126.4,126.31,0.30208065]
[1720155152641,6.432,126.41,126.34,0.20208065]
[1720155153414,6.432,126.41,126.36,0.20208065]
[1720155153811,6.432,126.41,126.34,0.20208065]
[1720155154023,15.0515,126.4,126.31,0.1]
[1720155154226,7.9135,126.37,126.31,0.1]
[1720155154420,15.0515,126.4,126.31,0.1]
[1720155154830,0.17,126.39,126.31,0.1]
[1720155155811,0.17,126.39,126.31,0.30208065]
[1720155156430,0.17,126.39,126.31,0.1]
[1720155157329,15.0515,126.4,126.33,0.20208065]
[1720155157540,15.0515,126.4,126.31,0.30208065]
[1720155157712,23.1523,126.48,126.34,0.20208065]
[1720155157913,23.1523,126.48,126.4,0.20208065]
[1720155158140,23.1523,126.48,126.44,0.20208065]
[1720155158435,16.5694,126.48,126.44,0.20208065]
[1720155159114,16.5694,126.48,126.42,0.20208065]
[1720155159435,16.5694,126.48,126.4,0.20208065]
[1720155160141,16.5694,126.48,126.38,0.20208065]
[1720155160846,0.17,126.47,126.38,0.20208065]
[1720155161223,0.17,126.47,126.4,0.20208065]
[1720155161413,16.5694,126.48,126.4,0.20208065]
[1720155161923,16.5694,126.48,126.36,0.20208065]
[1720155161924,0.17,126.47,126.36,0.20208065]
[1720155162317,0.17,126.47,126.31,12.93068343]
[1720155162318,7.9077,126.46,126.34,0.20208065]
[1720155162523,0.17,126.45,126.34,0.20208065]
[1720155163944,8.0783,126.45,126.34,0.20208065]
[1720155164263,6.0216,126.44,126.34,0.20208065]
[1720155164467,6.0216,126.44,126.36,0.20208065]
[1720155164468,0.17,126.43,126.36,0.20208065]
[1720155166566,6.0216,126.44,126.36,0.20208065]
[1720155167842,0.17,126.43,126.36,0.20208065]
[1720155169159,6.0216,126.44,126.36,0.20208065]
[1720155169462,16.5694,126.48,126.39,0.20208065]
[1720155169853,7.907,126.47,126.39,0.20208065]
[1720155170062,16.5694,126.48,126.35,0.20208065]
[1720155170063,7.9077,126.46,126.35,0.20208065]
[1720155170863,0.17,126.45,126.35,0.20208065]
[1720155171739,0.17,126.46,126.35,0.20208065]
[1720155171939,0.17,126.47,126.35,0.20208065]
[1720155172161,0.17,126.47,126.37,0.20208065]
[1720155172375,0.17,126.47,126.35,0.20208065]
[1720155172536,0.17,126.47,126.36,0.17]
[1720155172742,0.17,126.47,126.35,0.20208065]
[1720155172743,0.17,126.47,126.31,6.7491]
[1720155172965,0.17,126.47,126.33,0.20208065]
[1720155173341,7.9088,126.45,126.33,0.20208065]
[1720155173540,0.17,126.47,126.31,6.95118065]
[1720155173541,0.17,126.44,126.31,6.95118065]
[1720155173760,7.9102,126.42,126.31,6.7491]
[1720155173953,0.17,126.41,126.31,6.7491]
[1720155174445,0.17,126.41,126.33,0.20208065]
[1720155174646,16.5694,126.48,126.33,0.20208065]
[1720155175175,18.40574502,126.48,126.33,0.20208065]
[1720155175361,7.9091,126.44,126.32,20.0]
[1720155175668,7.9084,126.45,126.33,0.20208065]
[1720155175878,7.9089,126.44,126.33,0.20208065]
[1720155176163,0.17,126.43,126.33,0.20208065]
[1720155176369,0.17,126.43,126.32,20.0]
[1720155176545,0.17,126.43,126.31,6.95118065]
[1720155176867,7.9108,126.41,126.31,6.7491]
[1720155177170,0.17,126.4,126.31,6.7491]
[1720155177976,0.17,126.41,126.31,6.95118065]
[1720155178474,0.17,126.42,126.31,6.95118065]
[1720155179066,7.9089,126.44,126.31,6.95118065]
[1720155179270,7.9122,126.39,126.31,0.1]
[1720155179566,7.9116,126.4,126.31,0.1]